[Event "*** Titled Tuesday 3|2 Blitz"]
[Site "Chess.com"]
[Date "2015.03.03"]
[Round "2"]
[White "AlexanderL"]
[Black "stepanosinovsky"]
[Result "1-0"]
[WhiteElo "2508"]
[BlackElo "2278"]
[TimeControl "180+2"]
[EndTime "11:22:14 PST"]
[Termination "AlexanderL won by resignation"]

1. d4 {[%clk 0:03:00]} 1... Nf6 {[%clk 0:02:58.7]} 2. c4 {[%clk 0:03:00.6]} 2...
g6 {[%clk 0:03:00]} 3. Nf3 {[%clk 0:02:59]} 3... Bg7 {[%clk 0:03:01.9]} 4. e3
{[%clk 0:03:00.4]} 4... O-O {[%clk 0:03:02.8]} 5. Be2 {[%clk 0:03:01.7]} 5... d6
{[%clk 0:03:03.7]} 6. O-O {[%clk 0:03:02.4]} 6... Nbd7 {[%clk 0:03:05.6]} 7. Nc3
{[%clk 0:03:02.2]} 7... e5 {[%clk 0:03:07.1]} 8. Qc2 {[%clk 0:03:03.3]} 8... Re8
{[%clk 0:03:06.8]} 9. Rd1 {[%clk 0:03:03]} 9... e4 {[%clk 0:03:05.1]} 10. Nd2
{[%clk 0:03:03.5]} 10... Qe7 {[%clk 0:03:06.2]} 11. b4 {[%clk 0:03:04]} 11...
Nf8 {[%clk 0:03:06.3]} 12. b5 {[%clk 0:03:00.3]} 12... h5 {[%clk 0:03:06]} 13.
a4 {[%clk 0:02:58.8]} 13... Bg4 {[%clk 0:02:59]} 14. Ba3 {[%clk 0:02:52.8]}
14... Bxe2 {[%clk 0:02:58.7]} 15. Nxe2 {[%clk 0:02:53.7]} 15... h4 {[%clk
0:02:59.8]} 16. c5 {[%clk 0:02:26.5]} 16... h3 {[%clk 0:02:53.7]} 17. g3 {[%clk
0:02:27.7]} 17... Qe6 {[%clk 0:02:43]} 18. Rdc1 {[%clk 0:02:21.2]} 18... d5
{[%clk 0:02:41]} 19. c6 {[%clk 0:02:18.2]} 19... b6 {[%clk 0:02:38.5]} 20. Nf4
{[%clk 0:02:17.7]} 20... Qf5 {[%clk 0:02:38.1]} 21. Bxf8 {[%clk 0:02:11]} 21...
Bxf8 {[%clk 0:02:38.4]} 22. Qd1 {[%clk 0:02:03.6]} 22... g5 {[%clk 0:01:48.4]}
23. Nh5 {[%clk 0:02:02.7]} 23... Ng4 {[%clk 0:01:47.7]} 24. Qxg4 {[%clk
0:02:03.5]} 24... Qxg4 {[%clk 0:01:41]} 25. Nf6+ {[%clk 0:02:04.4]} 25... Kg7
{[%clk 0:01:32.7]} 26. Nxg4 {[%clk 0:02:06.3]} 26... Bb4 {[%clk 0:01:05.6]} 27.
Rc2 {[%clk 0:01:58]} 27... f5 {[%clk 0:00:50.8]} 28. Ne5 {[%clk 0:01:59.1]}
28... g4 {[%clk 0:00:50.8]} 29. Nb3 {[%clk 0:01:13.9]} 29... a5 {[%clk
0:00:44.1]} 30. bxa6 {[%clk 0:01:14.7]} 30... Rxa6 {[%clk 0:00:44.8]} 31. a5
{[%clk 0:01:09.6]} 31... Rea8 {[%clk 0:00:35.2]} 32. Ra4 {[%clk 0:01:01.8]}
32... Bd6 {[%clk 0:00:14.5]} 33. Kf1 {[%clk 0:00:50.9]} 33... Kf6 {[%clk
0:00:14.6]} 34. Nd7+ {[%clk 0:00:47.2]} 34... Ke7 {[%clk 0:00:14.8]} 35. Ke2
{[%clk 0:00:37.5]} 35... R6a7 {[%clk 0:00:09.6]} 36. Kd1 {[%clk 0:00:33]} 36...
Ra6 {[%clk 0:00:10.4]} 37. Kc1 {[%clk 0:00:33.4]} 37... R6a7 {[%clk 0:00:10.3]}
38. Kb1 {[%clk 0:00:34.6]} 38... Ra6 {[%clk 0:00:11.1]} 39. Raa2 {[%clk
0:00:35.1]} 39... bxa5 {[%clk 0:00:10.6]} 40. Ra4 {[%clk 0:00:32.9]} 40... Bb4
{[%clk 0:00:09.7]} 41. Ka2 {[%clk 0:00:31.9]} 41... Kd6 {[%clk 0:00:10.4]} 42.
Ne5 {[%clk 0:00:30.3]} 42... Rb6 {[%clk 0:00:06.9]} 43. Nc5 {[%clk 0:00:29.9]}
43... Rb5 {[%clk 0:00:07.1]} 44. Nb7+ {[%clk 0:00:27.4]} 44... Ke7 {[%clk
0:00:08]} 45. Ng6+ {[%clk 0:00:26.9]} 45... Ke6 {[%clk 0:00:08.1]} 46. Nf4+
{[%clk 0:00:27.9]} 46... Kf6 {[%clk 0:00:09.1]} 47. Nc5 {[%clk 0:00:28.4]} 47...
Bxc5 {[%clk 0:00:08.9]} 48. Nxd5+ {[%clk 0:00:26.9]} 48... Ke6 {[%clk
0:00:06.6]} 49. Nxc7+ {[%clk 0:00:28.1]} 49... Kd6 {[%clk 0:00:07.3]} 50. Nxb5+
{[%clk 0:00:29.3]} 1-0

[Event "*** Titled Tuesday 3|2 Blitz"]
[Site "Chess.com"]
[Date "2015.03.03"]
[Round "2"]
[White "jcibarra"]
[Black "lorcho"]
[Result "1-0"]
[WhiteElo "2549"]
[BlackElo "2366"]
[TimeControl "180+2"]
[EndTime "11:22:16 PST"]
[Termination "jcibarra won by resignation"]

1. d4 {[%clk 0:02:59]} 1... e6 {[%clk 0:02:52.1]} 2. e4 {[%clk 0:02:59.2]} 2...
b6 {[%clk 0:02:41.9]} 3. Bd3 {[%clk 0:02:59.5]} 3... Bb7 {[%clk 0:02:42.8]} 4.
Qe2 {[%clk 0:03:00.8]} 4... d6 {[%clk 0:02:43.9]} 5. f4 {[%clk 0:02:59.2]} 5...
Nd7 {[%clk 0:02:45.2]} 6. Nf3 {[%clk 0:03:00.6]} 6... c5 {[%clk 0:02:43.1]} 7.
c3 {[%clk 0:03:01.4]} 7... Qc7 {[%clk 0:02:43.1]} 8. O-O {[%clk 0:03:01.8]} 8...
Ngf6 {[%clk 0:02:44.2]} 9. e5 {[%clk 0:03:02.3]} 9... Nd5 {[%clk 0:02:41.7]} 10.
f5 {[%clk 0:03:03.5]} 10... dxe5 {[%clk 0:02:39.3]} 11. fxe6 {[%clk 0:03:03.2]}
11... fxe6 {[%clk 0:02:40.4]} 12. Ng5 {[%clk 0:03:01.6]} 12... N5f6 {[%clk
0:02:22.4]} 13. Nxe6 {[%clk 0:02:46]} 13... Qd6 {[%clk 0:02:22.9]} 14. Ng5
{[%clk 0:02:36.4]} 14... cxd4 {[%clk 0:02:14.9]} 15. cxd4 {[%clk 0:02:28.9]}
15... Qxd4+ {[%clk 0:02:14.3]} 16. Kh1 {[%clk 0:02:19.5]} 16... Bc5 {[%clk
0:02:05.2]} 17. Ne6 {[%clk 0:02:14.7]} 17... Qd6 {[%clk 0:02:04.9]} 18. Nxg7+
{[%clk 0:02:15.2]} 18... Kd8 {[%clk 0:02:05.3]} 19. Nf5 {[%clk 0:02:06.5]} 19...
Qc6 {[%clk 0:01:58.7]} 20. Bb5 {[%clk 0:01:53.7]} 20... Qe4 {[%clk 0:01:57.6]}
21. Qxe4 {[%clk 0:01:53.6]} 21... Bxe4 {[%clk 0:01:55.7]} 22. Nc3 {[%clk
0:01:52.8]} 22... Bb7 {[%clk 0:01:53.4]} 23. Bg5 {[%clk 0:01:45.6]} 23... Kc7
{[%clk 0:01:35.8]} 24. Nh6 {[%clk 0:01:39.7]} 24... Rhf8 {[%clk 0:01:31.9]} 25.
Rac1 {[%clk 0:01:37.2]} 25... a6 {[%clk 0:01:17.5]} 26. Be2 {[%clk 0:01:23]}
26... Kb8 {[%clk 0:01:14.5]} 27. Rcd1 {[%clk 0:00:56]} 27... Bc6 {[%clk
0:01:05.5]} 28. h4 {[%clk 0:00:55.4]} 28... Kc7 {[%clk 0:01:03.1]} 29. a3 {[%clk
0:00:46]} 29... Bd4 {[%clk 0:01:04.1]} 30. Bf3 {[%clk 0:00:38.1]} 30... Bxc3
{[%clk 0:00:55]} 31. bxc3 {[%clk 0:00:38.8]} 31... Bxf3 {[%clk 0:00:55.3]} 32.
Rxf3 {[%clk 0:00:37.8]} 32... Ne4 {[%clk 0:00:55.3]} 33. Kh2 {[%clk 0:00:29.6]}
33... Ndc5 {[%clk 0:00:42.5]} 34. Re3 {[%clk 0:00:28.3]} 34... Rae8 {[%clk
0:00:34]} 35. Rde1 {[%clk 0:00:28.4]} 35... Nxg5 {[%clk 0:00:29.8]} 36. hxg5
{[%clk 0:00:29.2]} 36... e4 {[%clk 0:00:31.3]} 37. Kg3 {[%clk 0:00:30.5]} 37...
Re5 {[%clk 0:00:29.1]} 38. Kh4 {[%clk 0:00:26.5]} 38... Rf4+ {[%clk 0:00:25.6]}
39. g4 {[%clk 0:00:26.6]} 39... Rf2 {[%clk 0:00:24.4]} 40. Nf5 {[%clk
0:00:24.1]} 40... Kc6 {[%clk 0:00:19.2]} 41. Rd1 {[%clk 0:00:21.8]} 41... Rf4
{[%clk 0:00:14.4]} 42. Kg3 {[%clk 0:00:20]} 42... Rf3+ {[%clk 0:00:04.6]} 43.
Rxf3 {[%clk 0:00:19.6]} 43... exf3 {[%clk 0:00:06.5]} 44. Kxf3 {[%clk
0:00:21.2]} 44... Na4 {[%clk 0:00:07.9]} 45. Rd4 {[%clk 0:00:18.8]} 45... b5
{[%clk 0:00:07.4]} 46. Rd6+ {[%clk 0:00:19]} 46... Kc5 {[%clk 0:00:08.5]} 47.
Rxa6 {[%clk 0:00:19.9]} 47... Nxc3 {[%clk 0:00:10]} 48. Rh6 {[%clk 0:00:21.6]}
48... Nb1 {[%clk 0:00:09.4]} 49. Rxh7 {[%clk 0:00:23.1]} 49... Nxa3 {[%clk
0:00:10.9]} 50. g6 {[%clk 0:00:24.7]} 50... b4 {[%clk 0:00:05.7]} 51. g7 {[%clk
0:00:26.1]} 51... Re8 {[%clk 0:00:06.9]} 52. Rh8 {[%clk 0:00:27.4]} 1-0

[Event "*** Titled Tuesday 3|2 Blitz"]
[Site "Chess.com"]
[Date "2015.03.03"]
[Round "2"]
[White "Danirod"]
[Black "patzerplay"]
[Result "0-1"]
[WhiteElo "2313"]
[BlackElo "2167"]
[TimeControl "180+2"]
[EndTime "11:22:21 PST"]
[Termination "patzerplay won by resignation"]

1. e4 {[%clk 0:03:00]} 1... c5 {[%clk 0:02:58.5]} 2. Nf3 {[%clk 0:03:01.1]} 2...
d6 {[%clk 0:02:59.9]} 3. Bb5+ {[%clk 0:03:01.6]} 3... Bd7 {[%clk 0:03:00.8]} 4.
Bxd7+ {[%clk 0:03:02.6]} 4... Qxd7 {[%clk 0:03:02.7]} 5. O-O {[%clk 0:03:03.1]}
5... Nc6 {[%clk 0:03:03.2]} 6. c3 {[%clk 0:03:04]} 6... Nf6 {[%clk 0:03:04.8]}
7. d4 {[%clk 0:03:04.6]} 7... Nxe4 {[%clk 0:03:06.1]} 8. d5 {[%clk 0:03:04.9]}
8... Ne5 {[%clk 0:03:07.4]} 9. Re1 {[%clk 0:03:05.7]} 9... Nf6 {[%clk
0:03:08.4]} 10. Nxe5 {[%clk 0:03:05.4]} 10... dxe5 {[%clk 0:03:10.3]} 11. Rxe5
{[%clk 0:03:01.5]} 11... O-O-O {[%clk 0:02:50.1]} 12. c4 {[%clk 0:02:58.1]}
12... e6 {[%clk 0:02:50.2]} 13. Nc3 {[%clk 0:02:58.4]} 13... Bd6 {[%clk
0:02:39.8]} 14. Re1 {[%clk 0:02:59.3]} 14... exd5 {[%clk 0:02:39.4]} 15. cxd5
{[%clk 0:03:00.9]} 15... Rhe8 {[%clk 0:02:32.2]} 16. Bg5 {[%clk 0:02:57.7]}
16... Rxe1+ {[%clk 0:01:52]} 17. Qxe1 {[%clk 0:02:56.8]} 17... Re8 {[%clk
0:01:53.7]} 18. Qd1 {[%clk 0:02:46.8]} 18... Ng4 {[%clk 0:01:53.9]} 19. g3
{[%clk 0:02:16.2]} 19... Qf5 {[%clk 0:01:48.1]} 20. Qd2 {[%clk 0:02:14.2]} 20...
Nxf2 {[%clk 0:01:43]} 21. Qxf2 {[%clk 0:02:07.8]} 21... Qxg5 {[%clk 0:01:43.4]}
22. Qxf7 {[%clk 0:02:00.7]} 22... Qe3+ {[%clk 0:01:25.3]} 23. Qf2 {[%clk
0:01:54]} 23... Qxf2+ {[%clk 0:01:08.3]} 24. Kxf2 {[%clk 0:01:55.4]} 24... Be5
{[%clk 0:01:09.9]} 25. Rb1 {[%clk 0:01:50.7]} 25... Bd4+ {[%clk 0:01:10.1]} 26.
Kf3 {[%clk 0:01:49.4]} 26... Re3+ {[%clk 0:01:05]} 27. Kf4 {[%clk 0:01:50.8]}
27... Re5 {[%clk 0:00:49.9]} 28. Rd1 {[%clk 0:01:44.3]} 28... a6 {[%clk
0:00:47.8]} 29. Rd3 {[%clk 0:01:23.3]} 29... g5+ {[%clk 0:00:35.8]} 30. Kg4
{[%clk 0:01:23.4]} 30... b5 {[%clk 0:00:36.1]} 31. a3 {[%clk 0:01:19.6]} 31...
Kd7 {[%clk 0:00:34.3]} 32. Kh5 {[%clk 0:01:20.7]} 32... Be3 {[%clk 0:00:22.4]}
33. g4 {[%clk 0:00:49.1]} 33... c4 {[%clk 0:00:19.5]} 34. Rd1 {[%clk 0:00:47.6]}
34... Bf4 {[%clk 0:00:20.7]} 35. h3 {[%clk 0:00:47.2]} 35... Re3 {[%clk
0:00:21.9]} 36. Rh1 {[%clk 0:00:47.1]} 36... Kd6 {[%clk 0:00:20.4]} 37. Kh6
{[%clk 0:00:45.9]} 37... Re7 {[%clk 0:00:21.5]} 38. Rd1 {[%clk 0:00:43.2]} 38...
Kc5 {[%clk 0:00:22.4]} 39. Kh5 {[%clk 0:00:36.1]} 39... Re3 {[%clk 0:00:22.6]}
40. Rh1 {[%clk 0:00:34]} 40... a5 {[%clk 0:00:21.6]} 41. h4 {[%clk 0:00:31.3]}
41... Re5 {[%clk 0:00:18]} 42. Kh6 {[%clk 0:00:27.7]} 42... gxh4+ {[%clk
0:00:11.5]} 43. Kxh7 {[%clk 0:00:29.3]} 43... Bg3 {[%clk 0:00:13.2]} 44. Kg6
{[%clk 0:00:30.4]} 44... b4 {[%clk 0:00:13.3]} 45. axb4+ {[%clk 0:00:31.2]}
45... axb4 {[%clk 0:00:15.2]} 46. Na4+ {[%clk 0:00:32.2]} 46... Kxd5 {[%clk
0:00:16.7]} 47. Kf6 {[%clk 0:00:31.7]} 47... Re6+ {[%clk 0:00:17.3]} 48. Kf5
{[%clk 0:00:32.9]} 48... Ra6 {[%clk 0:00:18.4]} 49. Rd1+ {[%clk 0:00:31.7]}
49... Kc6 {[%clk 0:00:17.8]} 50. Ra1 {[%clk 0:00:31.5]} 50... Kb5 {[%clk
0:00:17.8]} 51. g5 {[%clk 0:00:28.1]} 51... Rxa4 {[%clk 0:00:12.7]} 52. Rxa4
{[%clk 0:00:28.8]} 52... Kxa4 {[%clk 0:00:14.6]} 53. g6 {[%clk 0:00:30.5]} 53...
h3 {[%clk 0:00:16.3]} 54. g7 {[%clk 0:00:31.4]} 54... h2 {[%clk 0:00:18]} 55.
g8=Q {[%clk 0:00:33.2]} 55... h1=Q {[%clk 0:00:19.5]} 56. Qxc4 {[%clk
0:00:33.6]} 56... Qh5+ {[%clk 0:00:20.1]} 57. Ke6 {[%clk 0:00:34.6]} 57... Qg6+
{[%clk 0:00:21.3]} 58. Kd7 {[%clk 0:00:33.4]} 58... Qd6+ {[%clk 0:00:22.3]} 59.
Ke8 {[%clk 0:00:33.2]} 59... Qb8+ {[%clk 0:00:23.4]} 60. Kd7 {[%clk 0:00:33.8]}
60... Qb7+ {[%clk 0:00:23.7]} 61. Ke6 {[%clk 0:00:34.6]} 61... Qb6+ {[%clk
0:00:24.1]} 62. Kf7 {[%clk 0:00:34.6]} 62... Qc7+ {[%clk 0:00:24.8]} 63. Qxc7
{[%clk 0:00:35.5]} 63... Bxc7 {[%clk 0:00:26.7]} 64. Ke6 {[%clk 0:00:37.1]}
64... Kb3 {[%clk 0:00:28.2]} 65. Kd7 {[%clk 0:00:38.8]} 65... Kxb2 {[%clk
0:00:29.6]} 0-1

[Event "*** Titled Tuesday 3|2 Blitz"]
[Site "Chess.com"]
[Date "2015.03.03"]
[Round "2"]
[White "PauloCesarCosta"]
[Black "Mvpag"]
[Result "1-0"]
[WhiteElo "2059"]
[BlackElo "1860"]
[TimeControl "180+2"]
[EndTime "11:22:23 PST"]
[Termination "PauloCesarCosta won by resignation"]

1. Nf3 {[%clk 0:03:00]} 1... d5 {[%clk 0:02:52.3]} 2. c4 {[%clk 0:03:00.9]} 2...
e6 {[%clk 0:02:53.7]} 3. d4 {[%clk 0:03:01]} 3... Nf6 {[%clk 0:02:55.1]} 4. Nc3
{[%clk 0:03:01.2]} 4... Be7 {[%clk 0:02:33.1]} 5. Bg5 {[%clk 0:03:01.3]} 5...
O-O {[%clk 0:02:33.4]} 6. e3 {[%clk 0:03:02.2]} 6... a6 {[%clk 0:02:33.5]} 7. a4
{[%clk 0:03:00.3]} 7... Nbd7 {[%clk 0:02:33.9]} 8. Bd3 {[%clk 0:02:58.7]} 8...
dxc4 {[%clk 0:02:34.2]} 9. Bxc4 {[%clk 0:02:58.1]} 9... b6 {[%clk 0:02:35.6]}
10. O-O {[%clk 0:02:57.7]} 10... Bb7 {[%clk 0:02:37]} 11. Qe2 {[%clk 0:02:56.3]}
11... c5 {[%clk 0:02:37.2]} 12. Rfd1 {[%clk 0:02:50.8]} 12... Qc7 {[%clk
0:02:32.7]} 13. Bf4 {[%clk 0:02:40.4]} 13... Bd6 {[%clk 0:02:32.4]} 14. Bxd6
{[%clk 0:02:37.5]} 14... Qxd6 {[%clk 0:02:33.3]} 15. Rac1 {[%clk 0:02:18.3]}
15... Qb8 {[%clk 0:02:09.7]} 16. Bd3 {[%clk 0:02:05.9]} 16... cxd4 {[%clk
0:02:08.7]} 17. Nxd4 {[%clk 0:02:04]} 17... Nc5 {[%clk 0:02:08.8]} 18. Bc2
{[%clk 0:01:59.4]} 18... Qa7 {[%clk 0:02:07.5]} 19. b4 {[%clk 0:01:55.7]} 19...
Nce4 {[%clk 0:02:05.4]} 20. Nxe4 {[%clk 0:01:56]} 20... Bxe4 {[%clk 0:02:05]}
21. Bxe4 {[%clk 0:01:55.1]} 21... Nxe4 {[%clk 0:02:05.9]} 22. Qf3 {[%clk
0:01:45]} 22... Nf6 {[%clk 0:01:53.8]} 23. Nc6 {[%clk 0:01:40.1]} 23... Qb7
{[%clk 0:01:49.6]} 24. Ne5 {[%clk 0:01:39.4]} 24... Qxf3 {[%clk 0:01:48.3]} 25.
Nxf3 {[%clk 0:01:38.6]} 25... Rac8 {[%clk 0:01:44.7]} 26. Kf1 {[%clk 0:01:38.3]}
26... Rfe8 {[%clk 0:01:30.2]} 27. Ne5 {[%clk 0:01:31.6]} 27... Nd5 {[%clk
0:01:23.1]} 28. b5 {[%clk 0:01:22.9]} 28... axb5 {[%clk 0:01:19.1]} 29. axb5
{[%clk 0:01:23.9]} 29... Nc3 {[%clk 0:01:11.2]} 30. Rd6 {[%clk 0:01:06.2]} 30...
Nxb5 {[%clk 0:01:07.7]} 31. Rxc8 {[%clk 0:01:01.1]} 31... Nxd6 {[%clk
0:01:03.8]} 32. Rc6 {[%clk 0:00:58.2]} 32... Nc8 {[%clk 0:00:58.6]} 33. Nd7
{[%clk 0:00:51.7]} 33... b5 {[%clk 0:00:48]} 34. Nb6 {[%clk 0:00:45.8]} 34...
Na7 {[%clk 0:00:42.7]} 35. Rc7 {[%clk 0:00:43.6]} 35... b4 {[%clk 0:00:27.2]}
36. Rxa7 {[%clk 0:00:37.2]} 36... g6 {[%clk 0:00:23]} 37. Ke2 {[%clk 0:00:34.6]}
37... Rb8 {[%clk 0:00:21.9]} 38. Ra8 {[%clk 0:00:24.2]} 38... Rxa8 {[%clk
0:00:20.5]} 39. Nxa8 {[%clk 0:00:25.2]} 39... Kf8 {[%clk 0:00:21.5]} 40. Kd2
{[%clk 0:00:26.3]} 40... Ke7 {[%clk 0:00:22.5]} 41. Nb6 {[%clk 0:00:27.4]} 41...
Kd6 {[%clk 0:00:23.7]} 42. Nc4+ {[%clk 0:00:27.6]} 42... Kc5 {[%clk 0:00:24.6]}
43. Nb2 {[%clk 0:00:28.6]} 43... e5 {[%clk 0:00:23.4]} 44. f3 {[%clk 0:00:29.2]}
44... f5 {[%clk 0:00:23.8]} 45. Kd3 {[%clk 0:00:28.8]} 45... g5 {[%clk
0:00:24.4]} 46. Na4+ {[%clk 0:00:19.7]} 46... Kb5 {[%clk 0:00:24.1]} 47. Nb2
{[%clk 0:00:21.6]} 47... h5 {[%clk 0:00:24.1]} 48. g3 {[%clk 0:00:17.9]} 48...
Kc5 {[%clk 0:00:23.1]} 49. Na4+ {[%clk 0:00:16.8]} 49... Kb5 {[%clk 0:00:22.9]}
50. Nb2 {[%clk 0:00:18.3]} 50... Kc5 {[%clk 0:00:23.6]} 51. h3 {[%clk
0:00:18.1]} 51... g4 {[%clk 0:00:23.2]} 52. fxg4 {[%clk 0:00:18]} 52... f4
{[%clk 0:00:20.4]} 53. exf4 {[%clk 0:00:16.6]} 53... exf4 {[%clk 0:00:21.4]} 54.
gxf4 {[%clk 0:00:17.5]} 54... hxg4 {[%clk 0:00:21.9]} 55. hxg4 {[%clk
0:00:18.2]} 1-0

[Event "*** Titled Tuesday 3|2 Blitz"]
[Site "Chess.com"]
[Date "2015.03.03"]
[Round "2"]
[White "GeorgMeier"]
[Black "Brandon_Clarke"]
[Result "1-0"]
[WhiteElo "2731"]
[BlackElo "2310"]
[TimeControl "180+2"]
[EndTime "11:22:32 PST"]
[Termination "GeorgMeier won by resignation"]

1. Nf3 {[%clk 0:03:00]} 1... Nf6 {[%clk 0:02:57.9]} 2. c4 {[%clk 0:03:00.7]}
2... g6 {[%clk 0:02:56]} 3. Nc3 {[%clk 0:03:02]} 3... Bg7 {[%clk 0:02:57.2]} 4.
g3 {[%clk 0:02:59.9]} 4... O-O {[%clk 0:02:57.8]} 5. Bg2 {[%clk 0:03:01.1]} 5...
d6 {[%clk 0:02:59.3]} 6. d4 {[%clk 0:03:00.6]} 6... Nc6 {[%clk 0:02:55.4]} 7.
O-O {[%clk 0:03:01.5]} 7... e5 {[%clk 0:02:56.1]} 8. d5 {[%clk 0:02:52.8]} 8...
Ne7 {[%clk 0:02:54.4]} 9. e4 {[%clk 0:02:53.3]} 9... Nh5 {[%clk 0:02:54.1]} 10.
Ne1 {[%clk 0:02:45.3]} 10... f5 {[%clk 0:02:54.3]} 11. exf5 {[%clk 0:02:45.7]}
11... Bxf5 {[%clk 0:01:16.1]} 12. g4 {[%clk 0:02:45.5]} 12... Nf4 {[%clk
0:01:12.1]} 13. Bxf4 {[%clk 0:02:42.9]} 13... exf4 {[%clk 0:01:10.3]} 14. gxf5
{[%clk 0:02:43.6]} 14... Nxf5 {[%clk 0:01:11.5]} 15. Kh1 {[%clk 0:02:36.4]}
15... Qh4 {[%clk 0:01:10.4]} 16. Qf3 {[%clk 0:02:29.3]} 16... g5 {[%clk
0:01:10.9]} 17. Qh3 {[%clk 0:02:29]} 17... g4 {[%clk 0:01:09.1]} 18. Qxh4 {[%clk
0:02:29.4]} 18... Nxh4 {[%clk 0:01:10.3]} 19. Be4 {[%clk 0:02:28.9]} 19... f3
{[%clk 0:00:59.4]} 20. Rg1 {[%clk 0:02:19.1]} 20... h5 {[%clk 0:00:59.5]} 21.
Nd3 {[%clk 0:02:07.2]} 21... Rae8 {[%clk 0:00:58.3]} 22. Rae1 {[%clk 0:02:07.3]}
22... Ng2 {[%clk 0:00:57]} 23. Rxg2 {[%clk 0:02:08.3]} 23... fxg2+ {[%clk
0:00:58]} 24. Kxg2 {[%clk 0:02:10.2]} 24... Bxc3 {[%clk 0:00:52.7]} 25. bxc3
{[%clk 0:02:10.4]} 25... Kg7 {[%clk 0:00:51.4]} 26. Re3 {[%clk 0:02:08.6]} 26...
b6 {[%clk 0:00:51.2]} 27. h3 {[%clk 0:01:55.3]} 27... Kh6 {[%clk 0:00:51.7]} 28.
hxg4 {[%clk 0:01:55.8]} 28... hxg4 {[%clk 0:00:52.6]} 29. Kg3 {[%clk 0:01:56.5]}
29... Kg5 {[%clk 0:00:50.4]} 30. Bg2 {[%clk 0:01:55.9]} 30... Rxe3+ {[%clk
0:00:50.4]} 31. fxe3 {[%clk 0:01:56.9]} 31... Re8 {[%clk 0:00:44.8]} 32. e4
{[%clk 0:01:57.8]} 32... Rf8 {[%clk 0:00:44.6]} 33. Ne1 {[%clk 0:01:35.5]} 33...
a5 {[%clk 0:00:29.5]} 34. a4 {[%clk 0:01:31.7]} 34... Rg8 {[%clk 0:00:23.7]} 35.
Nc2 {[%clk 0:01:32.3]} 35... Rf8 {[%clk 0:00:25.1]} 36. Nd4 {[%clk 0:01:29.7]}
36... Kf6 {[%clk 0:00:24.7]} 37. Kxg4 {[%clk 0:01:26.6]} 37... Rg8+ {[%clk
0:00:25.6]} 38. Kf3 {[%clk 0:01:27]} 38... Ke5 {[%clk 0:00:27]} 39. Nc6+ {[%clk
0:01:27.1]} 39... Kf6 {[%clk 0:00:27.7]} 40. Nd4 {[%clk 0:01:16.6]} 40... Re8
{[%clk 0:00:27.4]} 41. Kf4 {[%clk 0:01:14.1]} 41... Rg8 {[%clk 0:00:28]} 42. Kf3
{[%clk 0:01:11.8]} 42... Rh8 {[%clk 0:00:29.4]} 43. Nb5 {[%clk 0:01:11.3]} 43...
Rh7 {[%clk 0:00:30.7]} 44. Kf4 {[%clk 0:01:12.1]} 44... Rg7 {[%clk 0:00:32.2]}
45. Bf3 {[%clk 0:01:13.1]} 45... Rh7 {[%clk 0:00:33.5]} 46. Bg4 {[%clk
0:01:10.5]} 46... Rg7 {[%clk 0:00:35]} 47. Bf5 {[%clk 0:01:11.1]} 47... Rf7
{[%clk 0:00:35.9]} 48. Nd4 {[%clk 0:01:10.7]} 48... Re7 {[%clk 0:00:37.3]} 49.
Nf3 {[%clk 0:01:05.6]} 49... Rg7 {[%clk 0:00:38.3]} 50. c5 {[%clk 0:01:06.1]}
50... bxc5 {[%clk 0:00:39.2]} 51. e5+ {[%clk 0:01:07.2]} 51... dxe5+ {[%clk
0:00:40.6]} 52. Nxe5 {[%clk 0:01:08.6]} 52... Re7 {[%clk 0:00:40.3]} 53. Nd7+
{[%clk 0:01:08.8]} 53... Kf7 {[%clk 0:00:40.9]} 54. Nxc5 {[%clk 0:01:10.4]}
54... Re1 {[%clk 0:00:41.4]} 55. Ne6 {[%clk 0:01:06.5]} 55... Rc1 {[%clk
0:00:40.4]} 56. Nxc7 {[%clk 0:01:02.6]} 56... Rxc3 {[%clk 0:00:41.5]} 57. d6
{[%clk 0:01:03]} 57... Rc4+ {[%clk 0:00:41.9]} 58. Ke5 {[%clk 0:01:04.4]} 58...
Rc5+ {[%clk 0:00:42.9]} 59. Nd5 {[%clk 0:01:04.1]} 59... Ke8 {[%clk 0:00:42.8]}
60. Bd3 {[%clk 0:01:00]} 60... Kd8 {[%clk 0:00:42.9]} 61. Bb5 {[%clk 0:01:01.1]}
61... Rc1 {[%clk 0:00:43.9]} 62. Nf4 {[%clk 0:01:01.8]} 62... Re1+ {[%clk
0:00:43.6]} 63. Kd5 {[%clk 0:01:03]} 63... Rd1+ {[%clk 0:00:42.7]} 64. Kc6
{[%clk 0:01:04]} 64... Re1 {[%clk 0:00:42.6]} 65. Kb6 {[%clk 0:01:03]} 65... Re4
{[%clk 0:00:41.8]} 66. Nd5 {[%clk 0:01:02.2]} 66... Rd4 {[%clk 0:00:43]} 67. Kc5
{[%clk 0:01:03.2]} 67... Rd1 {[%clk 0:00:43.6]} 68. Nb6 {[%clk 0:01:04.3]} 68...
Rc1+ {[%clk 0:00:43.7]} 69. Nc4 {[%clk 0:01:06.2]} 69... Kc8 {[%clk 0:00:41.3]}
70. Kb6 {[%clk 0:01:07.1]} 70... Kd8 {[%clk 0:00:40.5]} 71. Nxa5 {[%clk
0:01:08]} 71... Rd1 {[%clk 0:00:40.6]} 72. Nc4 {[%clk 0:01:09.5]} 72... Rc1
{[%clk 0:00:41.5]} 73. a5 {[%clk 0:01:10.9]} 73... Ra1 {[%clk 0:00:42.6]} 74. a6
{[%clk 0:01:11.8]} 74... Kc8 {[%clk 0:00:44.2]} 75. a7 {[%clk 0:01:12.9]} 75...
Kd8 {[%clk 0:00:45.7]} 76. Na5 {[%clk 0:01:12.8]} 1-0